Cogmind - Beta 15 --- EXPLORER MODE // 2025.07.03 @ 15:04:10 // Winter2019/RPGLIKE Player: User15V Result: Self-destructed Performance ------------- Evolutions (1) 500 Regions Visited (5) 1000 Robots Destroyed (25) 125 Value Destroyed (638) 638 Prototype IDs (23) 460 Alien Tech Used (0) 0 Bonus (300) 300 TOTAL SCORE: 3023 Bonus ------- Aligned with FarCom 300 Cogmind --------- Core Integrity 600/600 Matter 300/300 Energy 160/160 System Corruption 0% Temperature Cool (0) Movement Hovering (56) Location -9/Exiles Parts ------- > --- POWER (1) -------- Light Nuclear Core > --- PROPULSION (2) --- Hover Unit Hover Unit > --- UTILITY (4) ------ Improved Heat Sink Improved Terrain Scanner Targeting Computer Targeting Computer > --- WEAPON (2) ------- Improved Light Cannon Mining Laser > --- INVENTORY (4) ---- Light Ion Engine Improved Ion Engine Trap Extractor (0/4) Autogun Peak State ------------ > --- POWER ------------ Light Nuclear Core > --- PROPULSION ------- Hover Unit Hover Unit > --- UTILITY ---------- Improved Heat Sink Improved Terrain Scanner Targeting Computer Targeting Computer > --- WEAPON ----------- Heavy Assault Rifle Improved Light Cannon > --- INVENTORY -------- Light Ion Engine Trap Extractor Light Assault Rifle Mining Laser [Rating: 17] Favorites ----------- Power Light Nuclear Core Engine Light Ion Engine Power Core Light Nuclear Core Propulsion Hover Unit Hover Unit Hover Unit Utility Targeting Computer Device Improved Terrain Scanner Processor Targeting Computer Weapon Light Assault Rifle Ballistic Gun Light Assault Rifle Ballistic Cannon Improved Light Cannon Special Weapon Mining Laser Build | -11 -10 -10 -9 -9 -9 ------- Run | Yrd Mat Min Mat Min Exi Slots Evolved 5 | 5 . . . . . Power . | . . . . . . Propulsion 1 | 1 . . . . . Utility 3 | 3 . . . . . Weapon 1 | 1 . . . . . Parts Attached 13 | 4 6 . 3 . . Power 2 | . 2 . . . . Engine 1 | . 1 . . . . Core 1 | . 1 . . . . Reactor . | . . . . . . Propulsion 2 | . 2 . . . . Treads . | . . . . . . Leg . | . . . . . . Wheel . | . . . . . . Hover 2 | . 2 . . . . Flight . | . . . . . . Utility 4 | 2 2 . . . . Device 2 | 1 1 . . . . Storage . | . . . . . . Processor 2 | 1 1 . . . . Hackware . | . . . . . . Protection . | . . . . . . Artifact . | . . . . . . Weapon 5 | 2 . . 3 . . Energy Gun . | . . . . . . Energy Cannon . | . . . . . . Ballistic Gun 3 | 2 . . 1 . . Ballistic Cannon 1 | . . . 1 . . Launcher . | . . . . . . Special Weapon 1 | . . . 1 . . Impact Weapon . | . . . . . . Slashing Weapon . | . . . . . . Piercing Weapon . | . . . . . . Special Melee Weapon . | . . . . . . Unidentified Prototypes . | . . . . . . Parts Lost . | . . . . . . Power . | . . . . . . Propulsion . | . . . . . . Utility . | . . . . . . Weapon . | . . . . . . Highest Loss Streak . | . . . . . . To Critical Strikes . | . . . . . . Average Backups 2 | 1 . 2 3 4 4 Power 1 | . . 1 1 2 2 Propulsion . | . . . . . . Utility . | . . . . 1 1 Weapon . | . . 1 1 1 1 Tool/Special . | . . . . . . Unused Backups 3 | . . . . . 3 Power 1 | . . . . . 1 Propulsion . | . . . . . . Utility 1 | . . . . . 1 Weapon 1 | . . . . . 1 Tool/Special . | . . . . . . Average Slot Usage (%) 95 | . 75 100 99 100 100 Core 10 | . 5 11 11 11 11 Hover 21 | . 17 22 22 22 22 Device 20 | . 16 22 22 22 22 Processor 20 | . 11 22 22 22 22 Ballistic Gun 9 | . 22 22 10 . . Ballistic Cannon 6 | . . . 7 11 11 Special Weapon 5 | . . . 4 11 11 Peak Build Rating 17 | 6 15 15 17 16 16 Average Rating 14 | 2 11 15 15 16 16 On Entrance 11 | . 6 15 15 16 16 Naked Turns . | . . . . . . Heaviest Build 14 | 3 9 9 14 12 12 Greatest Support 12 | 3 12 12 12 12 12 Greatest Overweight (x) 1 | . . . 1 . . Average Overweight (x) . | . . . . . . Largest Inventory Capacity 4 | 4 4 4 4 4 4 Average Capacity 3 | 3 4 4 4 4 4 Most Carried 4 | 3 3 2 4 4 4 Average Carried 2 | 1 . 2 3 4 4 Final Capacity 4 | 4 4 4 4 4 4 Final Carried 4 | 1 2 2 4 4 4 Class Distribution -------------------- 100% | Hacker-Mutant Dominant Class ---------------- Hacker-Mutant | -10/Materials Hacker-Mutant | -10/Mines Hacker-Mutant | -9/Materials Hacker-Mutant | -9/Mines Hacker-Mutant | -9/Exiles Resources | -11 -10 -10 -9 -9 -9 ----------- Run | Yrd Mat Min Mat Min Exi Matter Collected 609 | 248 72 . 221 68 . Remotely . | . . . . . . Salvage Created 536 | 12 123 . 376 25 . Parts 52 | 3 10 . 36 3 . Haulers Intercepted 1 | . . . 1 . . Recyclers Shooed 1 | . . . . 1 . Parts Field Recycled . | . . . . . . Retrieved Matter . | . . . . . . Parts Self-Destructed . | . . . . . . Prevented . | . . . . . . Kills | -11 -10 -10 -9 -9 -9 ------- Run | Yrd Mat Min Mat Min Exi Combat Hostiles Destroyed 19 | . 6 . 11 2 . Guns 13 | . 6 . 7 . . Cannons 6 | . . . 4 2 . Classes Destroyed 7 | 1 2 . 4 . . Tunneler 1 | 1 . . . . . Hauler 1 | . . . 1 . . Operator 1 | . . . 1 . . Watcher 3 | . . . 3 . . Swarmer 7 | . 4 . 3 . . Grunt 10 | . 2 . 6 2 . Sentry 2 | . . . 2 . . Best Kill Streak 4 | 1 4 . 4 2 . Combat Bots Only 4 | . 4 . 4 2 . Max Kills in Single Turn 1 | 1 1 . 1 1 . Gunslinging . | . . . . . . Exploded . | . . . . . . Melee . | . . . . . . Uniques/NPCs Destroyed . | . . . . . . Combat | -11 -10 -10 -9 -9 -9 -------- Run | Yrd Mat Min Mat Min Exi Hostile Shots Fired 111 | . 41 . 61 9 . Missed 44 | . 14 . 26 4 . Hits 67 | . 27 . 35 5 . Projectile 67 | . 27 . 35 5 . Damage Taken 487 | . 178 . 263 46 . Core 386 | . 139 . 212 35 . Absorbed by Shields . | . . . . . . Redirected to Core 305 | . 119 . 151 35 . Ignored by Resistances 316 | . 120 . 169 27 . Core Remaining (%) 98 | 100 . 97 . . . Volleys Fired 82 | 4 23 . 43 12 . Largest 2 | 2 2 . 2 1 . Hottest 133 | 40 40 . 133 100 . Shots Fired 132 | 8 46 . 66 12 . Gun 97 | 8 46 . 43 . . Cannon 30 | . . . 21 9 . Launcher . | . . . . . . Special 5 | . . . 2 3 . Kinetic 127 | 8 46 . 64 9 . Thermal 5 | . . . 2 3 . Explosive . | . . . . . . Electromagnetic . | . . . . . . Robot Hit Streak 31 | 7 23 . 31 8 . Robot Miss Streak 2 | . 2 . 2 1 . Penetration Max . | . . . . . . Secondary Targets 4 | . 1 . 3 . . Max Gunslinging Chain 1 | . 1 . 1 . . Shots Hit Robots 108 | 7 38 . 55 8 . Core Hits 47 | 2 14 . 28 3 . Critical Kills . | . . . . . . Critical Parts Destroyed 1 | . 1 . . . . Critical Strikes 2 | . 1 . . 1 . Destroy 1 | . 1 . . . . Blast 1 | . . . . 1 . Melee Attacks . | . . . . . . Impact . | . . . . . . Slashing . | . . . . . . Piercing . | . . . . . . Sneak Attacks . | . . . . . . Combat Hostiles . | . . . . . . Follow-up Attacks . | . . . . . . Damage Inflicted 1211 | 49 306 . 691 165 . Guns 653 | 49 306 . 298 . . Cannons 534 | . . . 369 165 . Explosions . | . . . . . . Melee . | . . . . . . Ramming . | . . . . . . Kinetic 1187 | 49 306 . 667 165 . Thermal 24 | . . . 24 . . Explosive . | . . . . . . Electromagnetic . | . . . . . . Impact . | . . . . . . Slashing . | . . . . . . Piercing . | . . . . . . Highest Corruption . | . . . . . . Average Corruption . | . . . . . . Corruption Purged . | . . . . . . Corruption Blocked . | . . . . . . Overload Shots . | . . . . . . Overflow Damage 9 | . . . 9 . . Projectiles 9 | . . . 9 . . Explosions . | . . . . . . Melee . | . . . . . . Knockbacks 7 | . . . 3 4 . Impact . | . . . . . . Kinetic 6 | . . . 3 3 . Secondary 1 | . . . . 1 . Self-Inflicted Damage . | . . . . . . Shots . | . . . . . . Rammed . | . . . . . . Targets Rammed . | . . . . . . Kicked . | . . . . . . Crushed . | . . . . . . Highest Temperature 59 | . 59 . 4 1 . Average Temperature 32 | . 34 . 4 1 . Received Heat Transfer 339 | . 120 . 177 42 . Siege Activations . | . . . . . . Martial Activations . | . . . . . . Shielding Activations . | . . . . . . Robots Disrupted . | . . . . . . Combat Hostiles . | . . . . . . Robots Corrupted . | . . . . . . Combat Hostiles . | . . . . . . Parts Fried . | . . . . . . Impact Corruptions . | . . . . . . Robots Melted . | . . . . . . Combat Hostiles . | . . . . . . Parts Melted . | . . . . . . Heat Transferred 50 | . . . 50 . . Parts Sabotaged . | . . . . . . Parts Stolen . | . . . . . . Parts Stripped . | . . . . . . Power Chain Reactions . | . . . . . . Alert | -11 -10 -10 -9 -9 -9 ------- Run | Yrd Mat Min Mat Min Exi Maximum Alert Level . | . . . . . . Low Security (%) 100 | 100 100 100 100 100 . Level 1 . | . . . . . . Level 2 . | . . . . . . Level 3 . | . . . . . . Level 4 . | . . . . . . Level 5 . | . . . . . . High Security . | . . . . . . Max Security . | . . . . . . Peak Influence 112 | 5 90 35 112 50 . Initial 20 | . . 20 5 19 . Average 34 | 1 37 22 55 7 . Influence Increases 582 | 5 180 15 330 52 . Destroy 0b10 Robot/C 380 | . 120 . 220 40 . Destroy 0b10 Robot/NC 30 | 5 . . 25 . . Destroy Leader 108 | . 30 . 68 10 . Destroy Structure 4 | . . . 2 2 . Partial Spotted 30 | . . 15 15 . . Lose Combat Pursuer 30 | . 30 . . . . Influence Decreases 582 | 5 105 70 279 101 22 Entered New Map 144 | . . 55 15 52 22 Time Decay 438 | 5 105 15 264 49 . Squads Dispatched . | . . . . . . Investigation . | . . . . . . Extermination . | . . . . . . Reinforcement . | . . . . . . Assault . | . . . . . . Garrison . | . . . . . . Intercept . | . . . . . . Searches Triggered . | . . . . . . Construction Impeded . | . . . . . . Haulers Reinforced . | . . . . . . Active Scanning Responses . | . . . . . . Cargo Convoy Interrupts . | . . . . . . Stealth | -11 -10 -10 -9 -9 -9 --------- Run | Yrd Mat Min Mat Min Exi Distress Signals 3 | . 1 . 2 . . Communications Jammed . | . . . . . . Distress Signals . | . . . . . . Times Spotted 27 | . 9 . 16 2 . Peak Tracking Total 4 | . 4 . 4 2 . Tactical Retreats 1 | . 1 . . . . Traps | -11 -10 -10 -9 -9 -9 ------- Run | Yrd Mat Min Mat Min Exi Traps Triggered 3 | . . . 3 . . Indirectly . | . . . . . . Trap Hack Attempts . | . . . . . . Triggered . | . . . . . . Disarmed . | . . . . . . Reprogrammed . | . . . . . . Reused . | . . . . . . Traps Extracted . | . . . . . . Installed . | . . . . . . Triggered . | . . . . . . Machines | -11 -10 -10 -9 -9 -9 ---------- Run | Yrd Mat Min Mat Min Exi Machines Disabled . | . . . . . . Max in Single Turn . | . . . . . . Machines Repaired . | . . . . . . Machines Dismantled . | . . . . . . Machines Sabotaged . | . . . . . . Overloaded Fab Kills . | . . . . . . Hacking | -11 -10 -10 -9 -9 -9 --------- Run | Yrd Mat Min Mat Min Exi Machines Accessed 1 | . . . . . 1 Terminals . | . . . . . . Fabricators . | . . . . . . Repair Stations . | . . . . . . Recycling Units . | . . . . . . Scanalyzers . | . . . . . . Garrison Access . | . . . . . . Total Hacks 1 | . . . . . 1 Successful 1 | . . . . . 1 Failed . | . . . . . . Catastrophic . | . . . . . . Database Lockouts . | . . . . . . Manual 1 | . . . . . 1 Terminals . | . . . . . . Fabricators . | . . . . . . Repair Stations . | . . . . . . Recycling Units . | . . . . . . Scanalyzers . | . . . . . . Garrison Access . | . . . . . . Terminal Hacks 1 | . . . . . 1 Proto ID Catalog 1 | . . . . . 1 Fabricator Hacks . | . . . . . . Repair Station Hacks . | . . . . . . Recycling Unit Hacks . | . . . . . . Scanalyzer . | . . . . . . Garrison Access Hacks . | . . . . . . Unauthorized Hacks . | . . . . . . Terminals . | . . . . . . Fabricators . | . . . . . . Repair Stations . | . . . . . . Recycling Units . | . . . . . . Scanalyzers . | . . . . . . Garrison Access . | . . . . . . Data Cores Recovered 1 | . . . 1 . . Used . | . . . . . . Hacking Detections . | . . . . . . Full Trace Events . | . . . . . . Feedback Events . | . . . . . . Feedback Blocked . | . . . . . . Robot Schematics Acquired . | . . . . . . Robots Built . | . . . . . . Authchips . | . . . . . . Time . | . . . . . . Total Robot Build Rating . | . . . . . . Part Schematics Acquired . | . . . . . . Parts Built . | . . . . . . Authchips . | . . . . . . Time . | . . . . . . Total Part Build Rating . | . . . . . . Parts Repaired . | . . . . . . Time . | . . . . . . Parts Recycled . | . . . . . . Recycled Matter . | . . . . . . Retrieved Matter . | . . . . . . Retrieved Components . | . . . . . . Parts Scanalyzed . | . . . . . . Part Schematics Acquired . | . . . . . . Parts Damaged . | . . . . . . Bothacking | -11 -10 -10 -9 -9 -9 ------------ Run | Yrd Mat Min Mat Min Exi Used RIF Installer . | . . . . . . Robots Hacked . | . . . . . . Non-combat . | . . . . . . Combat . | . . . . . . Robot Hacks Applied . | . . . . . . Relay Couplers Released . | . . . . . . Fabnet Peak Effective % . | . . . . . . Robots Rewired . | . . . . . . Allies Hacked . | . . . . . . Hacks Repelled . | . . . . . . Allies | -11 -10 -10 -9 -9 -9 -------- Run | Yrd Mat Min Mat Min Exi Total Allies . | . . . . . . Largest Group . | . . . . . . Highest-Rated Group . | . . . . . . Highest-Rated Ally . | . . . . . . Total Orders . | . . . . . . Ally Attacks . | . . . . . . Total Damage . | . . . . . . Kills . | . . . . . . Allies Corrupted . | . . . . . . Allies Melted . | . . . . . . Intel | -11 -10 -10 -9 -9 -9 ------- Run | Yrd Mat Min Mat Min Exi Active Infowar (turns) 956 | 5 185 33 398 271 64 Terrain 956 | 5 185 33 398 271 64 Robot Analysis Total . | . . . . . . Derelict Logs Recovered . | . . . . . . Drone Launches . | . . . . . . Drone Recoveries . | . . . . . . Exploration | -11 -10 -10 -9 -9 -9 ------------- Run | Yrd Mat Min Mat Min Exi Turns Passed 992 | 41 185 33 398 271 64 Spaces Moved 927 | 44 179 59 331 201 113 Core 102 | 44 58 . . . . Treads . | . . . . . . Legs . | . . . . . . Wheels . | . . . . . . Hover 825 | . 121 59 331 201 113 Flight . | . . . . . . Fastest Speed 50 | 50 50 56 56 56 56 Average Speed 59 | 50 54 56 68 56 56 Slowest Speed 116 | 50 56 56 116 56 56 Overloaded Moves . | . . . . . . Propulsion Burnouts . | . . . . . . Robots Hopped . | . . . . . . Potential Cave-ins . | . . . . . . Cave-ins Triggered . | . . . . . . Exploration Rate (%) 32 | 3 45 18 41 45 40 Regions Visited 5 Branch Regions 3 Pre-discovered Areas . | . . . . . . Known Exits Taken 5 | 1 1 1 1 1 . Unknown Exits Taken . | . . . . . . Scrap Searched 1 | . . . . 1 . Spaces Dug 3 | . . . 1 2 . Terrain Destroyed 4 | . . . 2 2 . Melee . | . . . . . . Projectile 4 | . . . 2 2 . AOE . | . . . . . . Terrain Rammed . | . . . . . . Walls Destroyed . | . . . . . . Machines Disabled . | . . . . . . Actions | -11 -10 -10 -9 -9 -9 --------- Run | Yrd Mat Min Mat Min Exi Total 1233 | 56 229 58 435 342 113 Wait 166 | . 9 . 34 123 . Move 922 | 43 178 58 330 200 113 Hop . | . . . . . . Pick Up 16 | 5 6 . 4 1 . Fast Attach 6 | . . . 6 . . Attach 10 | 4 5 . 1 . . Detach . | . . . . . . Swap 3 | . 1 . 2 . . Drop 3 | . . . 2 1 . Fire 82 | 4 23 . 43 12 . Melee . | . . . . . . Ram . | . . . . . . Kick . | . . . . . . Crush . | . . . . . . Escape Stasis . | . . . . . . Rewire . | . . . . . . Trap . | . . . . . . Miscellaneous 25 | . 7 . 13 5 . Route ------- -11/Scrapyard -10/Materials (discovered 2 exits: *Mat / *Min) -10/Mines -9/Materials (discovered 2 exits: *Mat / *Min) -9/Mines (discovered 3 exits: *Mat x2 / *Exi) -9/Exiles (discovered 1 exit: Min) History --------- Turn | Location | Event 3 | -11/Scrapyard | Upgraded with Propulsion slot (x1) 3 | -11/Scrapyard | Upgraded with Utility slot (x3) 3 | -11/Scrapyard | Upgraded with Weapon slot (x1) 8 | -11/Scrapyard | Identified exit to Materials 8 | -11/Scrapyard | Discovered exit to Materials (range 15) 42 | -11/Scrapyard | Entered Materials 168 | -10/Materials | Identified exit to Materials 168 | -10/Materials | Discovered exit to Materials (range 10) 217 | -10/Materials | Identified exit to Mines 217 | -10/Materials | Discovered exit to Mines (range 11) 227 | -10/Materials | Entered Mines 252 | -10/Mines | Discovered exit to Materials (range 15) 260 | -10/Mines | Entered Materials 262 | -9/Materials | Reached level 2 262 | -9/Materials | Reached level 3 262 | -9/Materials | Reached level 4 310 | -9/Materials | Build established: Hacker-Mutant 559 | -9/Materials | Identified exit to Materials 559 | -9/Materials | Discovered exit to Materials (range 13) 645 | -9/Materials | Identified exit to Mines 645 | -9/Materials | Discovered exit to Mines (range 14) 658 | -9/Materials | Entered Mines 660 | -9/Mines | Reached level 5 684 | -9/Mines | Met a Derelict bent on vengeance 729 | -9/Mines | Discovered exit to Materials (range 6) 891 | -9/Mines | Discovered exit to Materials (range 5) 911 | -9/Mines | Identified exit to Exiles 911 | -9/Mines | Discovered exit to Exiles (range 15) 929 | -9/Mines | Entered Exiles 939 | -9/Exiles | Identified exit to Mines 939 | -9/Exiles | Discovered exit to Mines (range 16) 944 | -9/Exiles | Met 8R-AWN 951 | -9/Exiles | Met EX-HEX 970 | -9/Exiles | Met EX-BIN 977 | -9/Exiles | Aligned with FarCom system 977 | -9/Exiles | Given EX-Vault access code 990 | -9/Exiles | Opened EX-Vault 993 | -9/Exiles | Self-destructed Last Messages --------------- Modified TNC 0b10 Alert Chip Cloak of Protection Skeleton Box Trap Reconfigurator Supersonic Drone Bay Army-in-a-Box PSU Rigger Chronowheel AWS/Thermal Latent Energy Streamer Gui. Plasma Cannon Firepult YOLO Cannon AWS/Gauss XL Autogun Array AWS/Autocannon Field Lobotomy Kit Longsword +1 Deploy-a-Sentry Map ----- +----------------------------------------------------+ | | | | | | | | | | | | | | | | | | | | | | | | | | | | | | | | | | | | | | | | | | | | | | | ??????????#?????????##??###?#??#?##?#????????????? | | ???????????##?#?#?#?#####X####??#????#?#?????????? | | ??????????????##?#?#?# @ #?#?###??#??????????? | | ???????????#?#??#?####% ! ##?###??????????????? | | ??????????????#?#??### ] ##???#####??????????? | | ?????????#????#??#?#?## ##???#?####??????????? | | ?????????#?????#??#??#X #?###?#?#?#??????????? | | ????????????#?####?#?## #??##???#?#??????????? | | ??????????#???#???#?### #???#??#?#?#?????????? | | ????????????#???##?#??# ##?####??##??????????? | | ??????????#?#???##?#??# ##""""""##???????????? | | ?????????????#?#???#?## ## """?#?#?????????? | | ?????????????##??##?### X""#??#?????????? | | ??????????#?#??#####?## ## """??#??#???????? | | ???????????????######## #?""""""########?????? | | ??????????###?#?"""""## ##??###???#####??????? | | ???????????#??#"""" ## #???###?###??#???????? | | ????????????###""X" ###?##?######?#??????? | | ???????????#??#" ###???####??##??#????? | | ??????????#???#" ## #?##?##??####??#??#??? | | ?????????????##""""""## #############?###????? | | ???????????????#"###### ###"""""""#????#?????? | | ???????????## ??##??## ###"""""""####???????? | | ???????????????"?####?# #?#"""""""#??????????? | | ???????????????? ?##### ###"" """"#?##???????? | | ????????????#"?"?#####" """"#?##???#???? | | ????????????#####???##" """####??????#? | +----------------------------------------------------+ Best States ------------- Heat Dissipation 39 Energy Generation 14 Energy Capacity 160 Matter Stores 300 Matter Capacity 300 Sight Range 16 Terrain Scan Range 16 Terrain Scan Density 610 Resistance: KI 35 Resistance: TH 35 Resistance: EX 35 Resistance: EM 35 Resistance: I 35 Resistance: S 35 Resistance: P 35 Evasion (%) 53 Targeting Accuracy 10 Offensive Hacking 20 Item Schematics ----------------- None Robot Schematics ------------------ None Fabricated ------------ Nothing Repaired ---------- Nothing Alien Tech Used ----------------- None Achievements -------------- None Challenges ------------ None RPGLIKE | -11 -10 -10 -9 -9 -9 --------- Run | Yrd Mat Min Mat Min Exi Levels Raised 4 | . . . 3 1 . XP Earned 13042 | 6000 750 500 4692 750 350 XP Spent 6800 | 5950 . . 850 . . Upgrades 15 | 10 . . 5 . . Propulsion Slot 1 | 1 . . . . . Utility Slot 3 | 3 . . . . . Weapon Slot 1 | 1 . . . . . Inventory Capacity 4 | 4 . . . . . Terrain Scan Density 6 | 1 . . 5 . . Protomatter Created 292 | . 86 . 168 38 . Integrity Restored 508 | . 126 . 273 109 . Core 386 | . 126 . 196 64 . Parts 122 | . . . 77 45 . Protomatter Decayed 90 | . 16 . 74 . . Game ------ Seed AuthchipSigixSteel Manual? 0 Play Time 00:08:01 Cumulative 626.9 hours Start 2025.07.03 @ 14:56:41 End 2025.07.03 @ 15:04:10 Sessions 1 Manual Loads 0 Difficulty Explorer Special Mode Winter2019/RPGLIKE Game No. 255 Rogue 104 Adventurer 111 Explorer 40 Win Type - Total 43 Types 21/5/1/7/2/1/1/1/1/3 Lore% 92 Gallery% 97 Achievement% 96 Wizard Run 0 Options --------- Layout 2 ASCII 0 Keyboard 0 Movement Mouse Keybinds 0 Fullscreen 2 Font 24/Smallcaps Map View 50x44 Zoom Use 0% Tactical HUD 1 Map Filters NONE Filters NONE Steam 1 RUN: de47a665-f2e5-48e4-9679-9c6302b952a7